bitfinex-derivatives/quotes_SOLF0:USTF0_20250301
["timestamp","ask_amount","ask_price","bid_price","bid_amount"]
[1740840713391,0.05056851,140.43,140.41,7.17801008]
[1740840713690,7.17426851,140.43,140.41,0.05341008]
[1740840714984,0.05056851,140.43,140.41,0.05341008]
[1740840718197,7.1241,140.42,140.41,0.05341008]
[1740840720599,0.05056851,140.43,140.36,7.127]
[1740840720802,3.459,140.42,140.34,7.1132]
[1740840721002,10.6,140.41,140.34,7.1132]
[1740840721196,17.7249,140.41,140.37,7.1266]
[1740840721594,0.04552407,140.4,140.38,0.05247049]
[1740840722706,7.17082407,140.4,140.38,0.05247049]
[1740840725510,0.04552407,140.4,140.38,0.05247049]
[1740840725904,0.04552407,140.4,140.38,7.17857049]
[1740840726106,0.04552407,140.4,140.38,0.05247049]
[1740840727406,0.04552407,140.4,140.31,39.5464415]
[1740840727407,1.33101641,140.4,140.31,39.5464415]
[1740840727606,4.93509234,140.4,140.32,7.129]
[1740840727802,3.6496,140.4,140.32,7.129]
[1740840728003,3.6496,140.4,140.31,39.5464415]
[1740840728615,0.04557396,140.37,140.34,7.14923547]
[1740840728923,10.6,140.36,140.34,0.02113547]
[1740840729116,0.04557396,140.37,140.34,0.02113547]
[1740840729314,0.04557396,140.37,140.36,7.1272]
[1740840729716,0.04557396,140.37,140.34,0.02113547]
[1740840729906,0.04557396,140.37,140.34,7.14913547]
[1740840731016,0.04557396,140.37,140.34,0.02113547]
[1740840731220,0.04557396,140.37,140.36,7.1272]
[1740840733616,7.1242,140.42,140.34,0.02113547]
[1740840733617,10.6,140.42,140.34,0.02113547]
[1740840733818,227.96,140.45,140.34,0.02113547]
[1740840734022,227.96,140.45,140.31,10.6]
[1740840734322,7.1232,140.44,140.41,7.1244]
[1740840734822,7.16891033,140.44,140.41,7.17125028]
[1740840735517,7.124,140.43,140.41,0.04685028]
[1740840737525,7.16901033,140.44,140.41,0.04685028]
[1740840737728,0.04571033,140.44,140.41,0.04685028]
[1740840738025,0.04571033,140.44,140.41,7.17125028]
[1740840739426,0.04571033,140.44,140.42,7.1241]
[1740840740227,0.04571033,140.44,140.41,7.17125028]
[1740840740424,0.04571033,140.44,140.41,0.04685028]
[1740840740624,7.1241,140.42,140.41,0.04685028]
[1740840740825,0.04571033,140.44,140.36,7.1268]
[1740840741026,3.5366,140.43,140.33,3.4531]
[1740840741330,7.1263,140.38,140.34,7.1279]
[1740840741524,10.6,140.37,140.33,3.4531]
[1740840741923,0.04817374,140.36,140.34,7.1281]
[1740840742129,0.04817374,140.36,140.33,3.4531]
[1740840743030,0.04817374,140.36,140.35,7.1277]
[1740840743330,10.6,140.4,140.33,3.4531]
[1740840743631,10.6,140.4,140.38,7.1259]
[1740840744131,10.6,140.4,140.36,7.1269]
[1740840744330,10.64708795,140.4,140.38,0.04818421]
[1740840744530,10.64708795,140.4,140.33,3.4531]
[1740840744721,10.64708795,140.4,140.38,0.0536771]
[1740840744915,10.64708795,140.4,140.37,7.1264]
[1740840745127,10.64708795,140.4,140.38,0.04867279]
[1740840745930,17.77228795,140.4,140.38,0.04867279]
[1740840746123,10.64708795,140.4,140.38,0.04867279]
[1740840747030,17.77248795,140.4,140.38,0.04867279]
[1740840747932,10.64708795,140.4,140.38,0.04867279]
[1740840749427,17.77228795,140.4,140.38,0.04867279]
[1740840751127,238.74708795,140.4,140.38,0.04867279]
[1740840752727,245.87258795,140.4,140.38,0.04867279]
[1740840761042,238.74708795,140.4,140.38,7.17447279]
[1740840761227,238.74708795,140.4,140.38,0.04867279]
[1740840761837,238.74708795,140.4,140.39,7.1257]
[1740840762445,238.74708795,140.4,140.38,0.04867279]
[1740840762629,238.74708795,140.4,140.38,7.17457279]
[1740840764141,238.74708795,140.4,140.39,7.1257]
[1740840766958,228.14708795,140.4,140.39,7.1257]
[1740840770457,0.04708795,140.4,140.39,7.1257]
[1740840774159,0.04708795,140.4,140.38,7.17457279]
[1740840774549,0.04708795,140.4,140.38,0.04867279]
[1740840775554,0.04708795,140.4,140.39,7.1257]
[1740840783670,0.04708795,140.4,140.38,0.04867279]
[1740840783969,0.04708795,140.4,140.38,7.17437279]
[1740840785668,0.04708795,140.4,140.38,0.04867279]
[1740840785876,0.04708795,140.4,140.39,7.1257]
[1740840796380,0.04708795,140.4,140.38,0.04867279]
[1740840799290,0.04708795,140.4,140.33,64.82095364]
[1740840799477,3.51528795,140.4,140.33,64.82095364]
[1740840799778,7.127,140.37,140.32,71.95005364]
[1740840799978,10.6,140.36,140.32,71.95005364]
[1740840800583,0.05126774,140.35,140.32,71.95005364]
[1740840802281,0.05126774,140.35,140.32,7.1291]
[1740840803084,0.05126774,140.35,140.29,3.5932]
[1740840803285,0.05126774,140.35,140.33,7.1286]
[1740840803979,0.05126774,140.35,140.29,3.5932]
[1740840804183,0.05126774,140.35,140.32,7.1289]
[1740840805485,0.05126774,140.35,140.32,7.129]
[1740840806086,0.05126774,140.35,140.33,7.1287]
[1740840806385,0.05126774,140.35,140.29,3.5932]
[1740840807279,0.05126774,140.35,140.34,7.1282]
[1740840807676,0.05126774,140.35,140.29,3.5932]
[1740840807878,0.05126774,140.35,140.33,7.1285]
[1740840808081,0.05126774,140.35,140.29,3.5932]
[1740840808389,0.05126774,140.35,140.32,7.129]
[1740840809689,7.17906774,140.35,140.32,7.129]
[1740840809875,7.17906774,140.35,140.31,7.1296]
[1740840810279,0.05126774,140.35,140.31,7.1296]
[1740840810485,7.17906774,140.35,140.31,7.1295]
[1740840812689,7.17906774,140.35,140.29,3.5932]
[1740840812889,7.17906774,140.35,140.31,7.1293]
[1740840813387,0.05126774,140.35,140.29,3.5932]
[1740840813982,0.05126774,140.35,140.32,7.1289]
[1740840814578,0.05126774,140.35,140.29,3.5932]
[1740840814793,0.05126774,140.35,140.33,7.1285]
[1740840816699,0.05126774,140.35,140.34,7.1282]
[1740840817889,0.05126774,140.35,140.33,7.1284]
[1740840818402,0.05126774,140.35,140.29,3.5932]
[1740840819198,0.05126774,140.35,140.33,7.1285]
[1740840819394,0.05126774,140.35,140.29,3.5932]
[1740840819799,0.05126774,140.35,140.34,7.1282]
[1740840826106,0.05126774,140.35,140.33,7.1284]
[1740840827007,0.05126774,140.35,140.32,7.129]
[1740840827711,7.17896774,140.35,140.32,7.129]
[1740840834917,7.17896774,140.35,140.31,7.1295]
[1740840836113,7.1293,140.32,140.29,7.1305]
[1740840836417,10.6,140.31,140.27,9.88661037]
[1740840838220,7.1305,140.3,140.27,9.88661037]
[1740840838521,7.1305,140.3,140.26,7.132]
[1740840839019,10.6,140.31,140.24,3.3951]
[1740840839222,17.73,140.31,140.27,7.1317]
[1740840839419,0.0536733,140.29,140.27,7.1317]
[1740840841417,0.0536733,140.29,140.24,3.3951]
[1740840841624,0.0536733,140.29,140.28,7.1313]
[1740840843023,190.0,140.42,140.24,3.3951]
[1740840843224,10.6,140.34,140.24,13.9951]
[1740840843626,10.6,140.34,140.33,7.1287]
[1740840855438,0.045775,140.35,140.34,7.1282]
[1740840856130,0.045775,140.35,140.33,3.6861]
[1740840856131,228.08,140.37,140.36,7.1272]
[1740840856727,211.2374,140.37,140.36,7.1272]
[1740840860628,211.2374,140.37,140.35,7.17785131]
[1740840860830,211.2374,140.37,140.35,0.05035131]
[1740840862440,211.2374,140.37,140.35,7.17805131]
[1740840862834,211.2374,140.37,140.35,0.05035131]
[1740840863035,211.2374,140.37,140.36,7.1272]
[1740840864344,211.2374,140.37,140.35,7.17785131]
[1740840864542,218.3641,140.37,140.35,7.17785131]
[1740840865239,211.2374,140.37,140.35,7.17785131]
[1740840865938,211.2374,140.37,140.35,0.05035131]
[1740840866535,7.1272,140.36,140.35,0.05035131]
[1740840867243,211.2374,140.37,140.35,0.05035131]
[1740840867441,0.04589236,140.38,140.35,168.45965798]
[1740840867634,10.6,140.45,140.35,168.45965798]
[1740840867826,10.6,140.45,140.4,7.1247]
[1740840868327,10.6,140.45,140.35,168.40930667]
[1740840868534,10.6,140.45,140.41,7.1245]
[1740840868939,0.04646343,140.44,140.41,7.1245]
[1740840869242,0.04646343,140.44,140.42,7.124]
[1740840871142,0.04646343,140.44,140.39,0.0539343]
[1740840871343,0.04646343,140.44,140.43,7.1236]
[1740840874047,0.04646343,140.44,140.42,0.04641273]
[1740840876143,7.16966343,140.44,140.42,0.04641273]
[1740840876347,10.58,140.43,140.42,0.04641273]
[1740840877349,17.7036,140.43,140.38,7.126]
[1740840877644,10.58,140.43,140.38,7.126]
[1740840878147,10.58,140.43,140.39,7.1257]
[1740840878537,0.04574279,140.42,140.4,0.05398743]
[1740840881240,0.04574279,140.42,140.4,7.17888743]
[1740840883048,0.04574279,140.42,140.4,0.05398743]
[1740840885250,0.04574279,140.42,140.4,7.17888743]
[1740840886941,0.04574279,140.42,140.4,0.05398743]
[1740840888549,0.04574279,140.42,140.41,7.1247]
[1740840889245,0.04574279,140.42,140.4,7.17888743]
[1740840889447,0.04574279,140.42,140.4,0.05398743]
[1740840889843,0.04574279,140.42,140.4,7.17888743]
[1740840890259,0.04574279,140.42,140.41,7.1247]
[1740840891147,0.04574279,140.42,140.4,0.05398743]
[1740840892854,7.17014279,140.42,140.4,0.05398743]
[1740840896352,7.1247,140.41,140.4,0.05398743]
[1740840896751,0.04574279,140.42,140.4,0.05398743]
[1740840897052,7.17014279,140.42,140.4,0.05398743]
[1740840899162,0.04574279,140.42,140.4,0.05398743]
[1740840899366,7.1247,140.41,140.4,0.05398743]
[1740840899853,0.04574279,140.42,140.32,3.6993]
[1740840900052,3.3989,140.41,140.32,3.6993]
[1740840900255,10.58,140.4,140.32,3.6993]
[1740840900450,10.58,140.4,140.34,7.128]
[1740840900760,10.58,140.4,140.31,39.5464415]
[1740840900946,0.04506346,140.37,140.35,0.04779141]
[1740840901151,7.17196346,140.37,140.35,0.04779141]
[1740840902664,0.04506346,140.37,140.35,0.04779141]
[1740840906061,197.57942796,140.5,140.35,0.04779141]
[1740840906261,228.1,140.46,140.33,3.5901]
[1740840906463,228.1,140.46,140.35,168.40930667]
[1740840906668,228.1,140.46,140.36,3.6]
[1740840906859,228.1,140.46,140.37,10.58]
[1740840907062,228.1,140.46,140.37,178.98930667]
[1740840907262,0.04945331,140.43,140.4,0.05203977]
[1740840907461,228.1,140.46,140.4,0.05203977]
[1740840907970,228.1,140.46,140.45,7.1226]
[1740840910865,0.04499283,140.47,140.44,0.04825876]
[1740840911064,9.283e-05,140.47,140.46,7.1221]
[1740840911263,10.58,140.52,140.44,0.04825876]
[1740840911669,228.04,140.53,140.5,7.1197]
[1740840911970,238.62,140.53,140.5,7.1197]
[1740840912171,228.04,140.53,140.5,7.1197]
[1740840912370,228.08735505,140.53,140.5,7.17407153]
[1740840913572,228.08735505,140.53,140.5,0.05437153]
[1740840914266,228.08735505,140.53,140.5,7.17447153]
[1740840915981,228.08735505,140.53,140.5,0.05437153]
[1740840916875,228.08735505,140.53,140.51,7.1193]
[1740840918564,228.08735505,140.53,140.5,0.05437153]
[1740840920171,228.08735505,140.53,140.5,7.17427153]
[1740840921176,235.20615505,140.53,140.5,7.17427153]
[1740840921566,228.08735505,140.53,140.5,0.05437153]
[1740840922375,7.1194,140.52,140.5,0.05437153]
[1740840923677,7.1196,140.51,140.5,0.05437153]
[1740840924984,10.58,140.52,140.41,175.08350667]
[1740840925181,7.3385,140.5,140.41,168.40930667]
[1740840925588,7.1224,140.46,140.42,7.1239]
[1740840925791,10.58,140.45,140.42,7.1239]
[1740840926180,10.63304487,140.45,140.42,7.17668237]
[1740840926872,10.63304487,140.45,140.43,7.1236]
[1740840929087,10.63304487,140.45,140.44,7.1231]
[1740840929283,0.05304487,140.45,140.44,7.1231]
[1740840931891,0.05304487,140.45,140.42,0.05278237]
[1740840932091,0.05304487,140.45,140.43,7.1234]
[1740840932391,0.05304487,140.45,140.42,0.05278237]
[1740840932688,0.05304487,140.45,140.42,7.17678237]
[1740840934992,0.05304487,140.45,140.42,0.05278237]
[1740840935190,0.05304487,140.45,140.37,168.40930667]
[1740840935407,7.1242,140.42,140.38,7.1258]
[1740840935604,10.58,140.41,140.38,7.1258]
[1740840935807,10.58,140.41,140.32,3.5257]
[1740840936001,14.2502,140.41,140.32,3.5257]
[1740840936201,14.2502,140.41,140.38,7.1258]
[1740840936710,14.29616679,140.41,140.38,7.17252562]
[1740840936906,14.29616679,140.41,140.38,0.04672562]
[1740840937711,14.29616679,140.41,140.38,7.17252562]
[1740840939015,14.29616679,140.41,140.38,0.04672562]
[1740840939202,14.29616679,140.41,140.39,7.1255]
[1740840940611,14.29616679,140.41,140.38,0.04672562]
[1740840941214,14.29616679,140.41,140.39,7.1256]
[1740840941517,14.29616679,140.41,140.38,0.04672562]
[1740840942613,14.29616679,140.41,140.38,7.17252562]
[1740840943507,14.29616679,140.41,140.39,7.1256]
[1740840943814,14.29616679,140.41,140.38,0.04672562]
[1740840944018,10.62596679,140.41,140.38,0.04672562]
[1740840944419,10.62596679,140.41,140.4,7.1252]
[1740840944617,0.04596679,140.41,140.4,7.1252]
[1740840945920,0.04596679,140.41,140.38,0.04672562]
[1740840946120,0.04596679,140.41,140.39,7.1254]
[1740840947019,0.04596679,140.41,140.39,7.1252]
[1740840947414,0.04596679,140.41,140.38,0.04672562]
[1740840947614,0.04596679,140.41,140.39,7.1257]
[1740840949422,0.04596679,140.41,140.38,0.04672562]
[1740840949423,0.04596679,140.41,140.4,7.1252]
[1740840950513,7.1257,140.39,140.38,0.04672562]
[1740840950820,10.58,140.4,140.38,0.04672562]
[1740840957018,10.58,140.4,140.38,7.17282562]
[1740840957218,10.58,140.4,140.38,0.04672562]
[1740840957530,10.58,140.4,140.39,7.1257]
[1740840960528,0.04596679,140.41,140.4,7.1252]
[1740840962130,0.04596679,140.41,140.39,7.1255]
[1740840962327,0.04596679,140.41,140.38,0.04672562]
[1740840962721,7.1255,140.4,140.38,0.04672562]
[1740840965132,0.04596679,140.41,140.38,0.04672562]
[1740840965329,3.52846679,140.41,140.31,171.48550667]
[1740840965516,3.4825,140.41,140.31,3.0762]
[1740840966423,10.6074,140.41,140.37,7.1264]
[1740840966935,0.05444593,140.4,140.35,0.04894241]
[1740840967124,0.05444593,140.4,140.38,7.1262]
[1740840970528,0.05444593,140.4,140.39,7.1257]
[1740840971629,4.593e-05,140.4,140.39,7.1257]
[1740840971829,227.98,140.43,140.42,7.1241]
[1740840974139,0.04628955,140.44,140.41,0.05230073]
[1740840974330,0.04628955,140.44,140.43,7.1236]
[1740840975035,0.04628955,140.44,140.41,0.05230073]
[1740840975540,0.04628955,140.44,140.43,7.1236]
[1740840976037,0.04628955,140.44,140.42,7.1239]
[1740840976437,0.04628955,140.44,140.41,0.05230073]
[1740840976639,10.62628955,140.44,140.41,0.05230073]
[1740840977232,10.62628955,140.44,140.42,7.1241]
[1740840978149,10.62628955,140.44,140.41,7.17660073]
[1740840978335,10.62628955,140.44,140.41,0.05230073]
[1740840978739,10.62628955,140.44,140.41,7.17670073]
[1740840978940,10.62628955,140.44,140.41,0.05230073]
[1740840979341,10.62628955,140.44,140.42,7.1239]
[1740840980553,10.62628955,140.44,140.43,7.1236]
[1740840981948,10.62628955,140.44,140.41,0.05230073]
[1740840982145,10.62628955,140.44,140.42,7.1239]
[1740840982850,10.62628955,140.44,140.41,0.05230073]
[1740840983045,10.62628955,140.44,140.43,7.1236]
[1740840983446,10.62628955,140.44,140.41,0.05230073]
[1740840983646,17.74948955,140.44,140.41,0.05230073]
[1740840983946,10.62628955,140.44,140.35,9.88661037]
[1740840984150,6.9214,140.43,140.35,9.88661037]
[1740840984349,7.1244,140.42,140.38,7.1259]
[1740840984748,6.9214,140.43,140.34,39.5464415]
[1740840984949,6.9214,140.43,140.41,7.1246]
[1740840985250,6.97466265,140.43,140.41,7.1246]
[1740840985438,6.97466265,140.43,140.41,7.17210116]
[1740840985645,6.97466265,140.43,140.41,0.04750116]
[1740840986750,14.09836265,140.43,140.41,0.04750116]
[1740840989051,7.1241,140.42,140.39,7.1254]
[1740840989353,7.1241,140.42,140.32,138.0833841]
[1740840989841,6.9214,140.43,140.32,138.0833841]
[1740840990047,1.28530636,140.42,140.32,134.7055841]
[1740840990242,0.04836683,140.39,140.32,134.7055841]
[1740840990547,17.7065,140.38,140.33,7.1284]
[1740840990955,10.58,140.38,140.32,134.7055841]
[1740840991260,10.58,140.38,140.32,39.5464415]
[1740840991452,7.1281,140.35,140.32,39.5464415]
[1740840991861,7.17922946,140.35,140.32,39.5464415]
[1740840992470,0.05112946,140.35,140.3,0.90430089]
[1740840993258,0.05112946,140.35,140.33,7.1286]
[1740840993571,0.05112946,140.35,140.3,0.90430089]
[1740840994171,0.05112946,140.35,140.31,7.1293]
[1740840994973,0.05112946,140.35,140.3,0.90430089]
[1740840995173,0.05112946,140.35,140.32,7.1291]
[1740840997960,0.05112946,140.35,140.34,7.1282]
[1740841000376,0.05112946,140.35,140.3,0.90430089]
[1740841001482,0.05112946,140.35,140.32,7.1289]
[1740841002774,0.05112946,140.35,140.31,7.1295]
[1740841002976,7.17912946,140.35,140.31,7.1295]
[1740841004382,0.05112946,140.35,140.3,0.90430089]
[1740841004584,0.05112946,140.35,140.32,7.1289]
[1740841005476,0.05112946,140.35,140.33,7.1287]
[1740841006886,0.05112946,140.35,140.27,3.6722]
[1740841007477,7.1283,140.34,140.3,7.13]
[1740841007678,10.58,140.33,140.3,7.13]
[1740841008583,7.1293,140.32,140.27,3.6722]
[1740841008783,10.58,140.33,140.27,3.6722]
[1740841008990,0.04671681,140.31,140.27,3.6722]
[1740841009185,0.04671681,140.31,140.29,7.1303]
[1740841009384,0.04671681,140.31,140.27,3.6722]
[1740841011190,0.04671681,140.31,140.28,7.1309]
[1740841011987,0.04671681,140.31,140.28,7.1312]
[1740841012583,0.04671681,140.31,140.23,105.43622564]
[1740841012784,0.04671681,140.31,140.27,7.1315]
[1740841012983,0.04671681,140.31,140.23,105.43622564]
[1740841013184,7.1304,140.3,140.26,7.1323]
[1740841013685,0.04671681,140.31,140.26,7.1323]
[1740841013883,0.04671681,140.31,140.23,98.64212564]
[1740841013884,7.1315,140.28,140.23,98.64212564]
[1740841014083,10.58,140.28,140.23,98.64212564]
[1740841014283,0.05458562,140.27,140.23,3.4258]
[1740841015392,0.05458562,140.27,140.26,7.1323]
[1740841021996,10.58,140.31,140.23,3.4258]
[1740841022200,10.58,140.31,140.24,14.2664]
[1740841022802,10.58,140.31,140.3,7.1302]
[1740841022997,10.58,140.34,140.25,3.4165]
[1740841023298,0.051361,140.32,140.29,0.05342398]
[1740841023598,0.051361,140.32,140.31,7.1297]
[1740841024799,0.051361,140.32,140.3,7.1301]
[1740841024989,0.051361,140.32,140.29,0.05342398]
[1740841025190,7.180661,140.32,140.29,0.05342398]
[1740841025498,0.051361,140.32,140.29,7.18392398]
[1740841026193,0.051361,140.32,140.29,0.05342398]
[1740841026990,0.051361,140.32,140.29,7.18382398]
[1740841029700,0.051361,140.32,140.29,0.05342398]
[1740841030503,0.051361,140.32,140.29,7.18392398]
[1740841031399,0.051361,140.32,140.29,0.05342398]
[1740841032291,0.051361,140.32,140.3,7.1302]
[1740841032493,0.051361,140.32,140.29,0.05342398]
[1740841032891,0.051361,140.32,140.31,7.1297]
[1740841034995,228.1,140.37,140.3,3.3887]
[1740841035199,11.0498,140.41,140.31,3.5797]
[1740841035499,10.58,140.39,140.31,3.5797]
[1740841035707,10.58,140.39,140.37,7.1264]
[1740841036101,10.63450488,140.39,140.37,0.05205094]
[1740841036505,17.76040488,140.39,140.37,0.05205094]
[1740841036895,10.63450488,140.39,140.37,0.05205094]
[1740841037206,17.76040488,140.39,140.37,0.05205094]
[1740841037703,10.63450488,140.39,140.37,0.05205094]
[1740841040603,17.76020488,140.39,140.37,0.05205094]
[1740841044614,10.63450488,140.39,140.37,0.05205094]
[1740841047823,0.05450488,140.39,140.38,7.1262]
[1740841053418,4.88e-06,140.39,140.38,7.1262]
[1740841053916,10.56,140.47,140.37,0.05205094]
[1740841054112,10.56,140.47,140.37,10.6787]
[1740841054311,235.2414,140.48,140.37,10.6787]
[1740841054516,10.56,140.47,140.37,10.6787]
[1740841054707,17.6819,140.47,140.37,10.6787]
[1740841054902,0.04981356,140.43,140.42,7.1237]
[1740841055108,238.68,140.48,140.42,7.1237]
[1740841055303,0.04681819,140.44,140.42,7.1237]
[1740841055720,0.04681819,140.44,140.43,7.1236]
[1740841057309,0.04681819,140.44,140.42,7.124]
[1740841059915,0.04681819,140.44,140.41,0.04833288]
[1740841060115,0.04681819,140.44,140.43,7.1236]
[1740841064619,1.819e-05,140.44,140.43,7.1236]
[1740841064819,1.819e-05,140.44,140.43,10.6836]
[1740841066022,1.819e-05,140.44,140.43,7.1236]
[1740841071918,1.819e-05,140.44,140.42,7.1239]
[1740841072916,1.819e-05,140.44,140.41,168.45763955]
[1740841073120,1.819e-05,140.44,140.41,0.04833288]
[1740841074331,1.819e-05,140.44,140.41,7.17273288]
[1740841075030,7.1237,140.43,140.41,0.04833288]
[1740841078424,7.12341819,140.44,140.41,7.17253288]
[1740841080032,1.819e-05,140.44,140.41,0.04833288]
[1740841080231,7.1237,140.43,140.41,0.04833288]
[1740841081634,7.12341819,140.44,140.41,0.04833288]
[1740841083233,1.819e-05,140.44,140.41,0.04833288]
[1740841083433,7.1239,140.43,140.41,0.04833288]
[1740841085348,1.819e-05,140.44,140.41,0.04833288]
[1740841085535,1.819e-05,140.44,140.41,7.17253288]
[1740841086033,7.1237,140.43,140.41,0.04833288]
[1740841086219,1.819e-05,140.44,140.41,0.04833288]
[1740841086730,7.12351819,140.44,140.41,0.04833288]
[1740841086919,1.819e-05,140.44,140.41,0.04833288]
[1740841087334,7.1238,140.43,140.41,0.04833288]
[1740841093735,1.819e-05,140.44,140.41,0.04833288]
[1740841093942,7.12351819,140.44,140.41,7.17273288]
[1740841094241,1.819e-05,140.44,140.41,0.04833288]
[1740841094750,1.819e-05,140.44,140.42,7.1238]
[1740841095230,1.819e-05,140.44,140.43,7.1236]
[1740841107647,1.819e-05,140.44,140.42,7.1239]
[1740841110661,1.819e-05,140.44,140.41,0.04833288]
[1740841111265,7.12351819,140.44,140.41,0.04833288]
[1740841111469,1.819e-05,140.44,140.35,39.5464415]
[1740841111759,7.1875,140.45,140.35,39.5464415]
[1740841111957,7.1875,140.45,140.37,7.1265]
[1740841112677,7.125,140.41,140.4,0.05272097]
[1740841112974,10.54,140.41,140.37,7.1265]
[1740841113174,14.0662,140.41,140.34,95.1556289]
[1740841113376,7.1256,140.4,140.36,7.127]
[1740841113575,14.0662,140.41,140.34,95.1556289]
[1740841113784,14.0662,140.41,140.33,39.5464415]
[1740841113785,7.1266,140.38,140.33,46.6750415]
[1740841114084,0.0533455,140.39,140.36,0.04649307]
[1740841114377,228.04,140.38,140.33,39.5464415]
[1740841115458,7.1278,140.35,140.34,0.05453077]
[1740841115665,10.54,140.35,140.31,7.1296]
[1740841116176,10.54,140.35,140.32,7.1292]
[1740841116973,10.59205901,140.35,140.32,7.1292]
[1740841118578,10.59205901,140.35,140.29,0.93823849]
[1740841119377,10.59205901,140.35,140.33,7.1287]
[1740841121277,10.59205901,140.35,140.34,7.1282]
[1740841123182,10.59205901,140.35,140.29,0.93823849]
[1740841123375,14.01555901,140.35,140.29,0.93823849]
[1740841123571,10.59205901,140.35,140.29,0.93823849]
[1740841124073,10.59205901,140.35,140.34,7.1282]
[1740841124383,0.05205901,140.35,140.34,7.1282]
[1740841132489,0.05205901,140.35,140.29,0.93823849]
[1740841132783,0.05205901,140.35,140.33,7.1284]
[1740841133585,0.05205901,140.35,140.29,0.93823849]
[1740841134590,0.05205901,140.35,140.33,7.1285]
[1740841136886,0.05205901,140.35,140.29,0.93823849]
[1740841137088,0.05205901,140.35,140.34,7.1282]
[1740841139694,5.901e-05,140.35,140.34,7.1282]
[1740841146892,5.901e-05,140.35,140.34,21.2282]
[1740841149997,5.901e-05,140.35,140.34,7.1282]
[1740841150198,10.715,140.44,140.34,45.88002952]
[1740841150402,10.715,140.44,140.39,7.1254]
[1740841150403,7.1239,140.43,140.39,7.1254]
[1740841151195,7.1239,140.43,140.4,7.1249]
[1740841151399,7.1239,140.43,140.4,7.17026497]
[1740841151400,0.05024667,140.42,140.4,7.17026497]
[1740841151897,0.05024667,140.42,140.4,0.04536497]
[1740841152610,7.17464667,140.42,140.4,0.04536497]
[1740841152789,0.05024667,140.42,140.4,0.04536497]
[1740841153401,0.05024667,140.42,140.41,7.1247]
[1740841158522,0.05024667,140.42,140.4,0.04536497]
[1740841160823,0.05024667,140.42,140.4,7.17046497]
[1740841165331,7.17444667,140.42,140.4,7.17046497]
[1740841171125,7.1247,140.41,140.4,0.04536497]
[1740841171425,0.05024667,140.42,140.31,29.36244621]
[1740841171619,10.715,140.44,140.31,29.36244621]
[1740841172133,10.715,140.44,140.31,4.56354621]
[1740841172430,7.1264,140.38,140.35,7.1274]
[1740841172619,10.58975745,140.39,140.35,7.1274]
[1740841173327,10.58975745,140.39,140.31,4.56354621]
[1740841173525,17.71585745,140.39,140.36,7.1271]
[1740841174335,7.1262,140.38,140.35,7.1274]
[1740841175723,17.71575745,140.39,140.31,4.56354621]
[1740841175924,17.666,140.39,140.31,4.56354621]
[1740841176126,0.05310765,140.36,140.31,4.56354621]
[1740841176534,0.05310765,140.36,140.35,7.1273]
[1740841185046,0.05310765,140.36,140.31,0.93814621]
[1740841186040,7.18040765,140.36,140.31,0.93814621]
[1740841186350,7.18040765,140.36,140.33,7.1284]
[1740841187144,7.18040765,140.36,140.31,0.93814621]
[1740841187347,7.18040765,140.36,140.32,7.1291]
[1740841187947,7.18040765,140.36,140.31,0.93814621]
[1740841188240,0.05310765,140.36,140.31,0.93814621]
[1740841189046,0.05310765,140.36,140.33,7.1283]
[1740841189345,0.05310765,140.36,140.31,0.93814621]
[1740841189734,7.18030765,140.36,140.33,7.1285]
[1740841191048,7.1277,140.35,140.32,7.1289]
[1740841191549,17.6682,140.34,140.31,7.1295]
[1740841191948,10.54,140.34,140.27,9.88661037]
[1740841192447,0.0490962,140.32,140.3,7.1299]
[1740841195550,0.0490962,140.32,140.31,7.1297]
[1740841200551,21.4135,140.38,140.29,14.2615]
[1740841200940,28.5399,140.38,140.29,14.2615]
[1740841201145,28.5399,140.38,140.34,7.1278]
[1740841201348,21.4135,140.38,140.25,64.2714415]
[1740841201548,21.4135,140.38,140.29,7.1305]
[1740841201750,0.05318931,140.33,140.3,0.048862]
[1740841202055,10.59318931,140.33,140.3,0.048862]
[1740841203850,7.4865,140.32,140.3,0.048862]
[1740841205459,3.7117,140.32,140.3,0.048862]
[1740841209267,10.59318931,140.33,140.32,7.1292]
[1740841209749,10.59318931,140.33,140.31,7.1295]
[1740841210268,10.59318931,140.33,140.3,0.048862]
[1740841210757,7.1297,140.31,140.3,0.048862]
[1740841212467,7.1312,140.29,140.21,46.7096415]